bitfinex-derivatives/quotes_BNBF0:USTF0_20250330
["timestamp","ask_amount","ask_price","bid_price","bid_amount"]
[1743351886106,3.489,601.58,600.94,0.33281192]
[1743351886511,5.242,601.58,600.94,0.33281192]
[1743351889717,6.931,601.58,600.94,0.33281192]
[1743351913337,6.931,601.58,600.95,2.5305137]
[1743351916238,6.931,601.58,601.09,2.5305137]
[1743351917338,6.931,601.58,601.11,2.5305137]
[1743351919041,6.931,601.58,601.06,2.5305137]
[1743351919340,6.931,601.58,601.07,0.33273994]
[1743351930747,6.931,601.58,601.13,2.5305137]
[1743351931050,6.931,601.58,601.14,0.3327012]
[1743351932351,6.931,601.58,601.22,2.5305137]
[1743351935857,6.931,601.58,601.21,2.5305137]
[1743351941953,6.931,601.58,601.22,2.5305137]
[1743351942852,6.931,601.58,601.23,2.5305137]
[1743351944157,6.931,601.58,601.22,2.5305137]
[1743351945759,6.931,601.58,601.2,0.28922993]
[1743351947867,6.931,601.58,601.19,2.5305137]
[1743351948158,6.931,601.58,601.2,0.28923353]
[1743351950860,6.931,601.58,601.14,0.3327012]
[1743351952366,6.931,601.58,601.15,0.28928041]
[1743351953864,6.931,601.58,601.14,0.3327012]
[1743351954264,6.931,601.58,601.15,0.28925156]
[1743351956970,6.931,601.58,601.14,0.3327012]
[1743351957168,6.931,601.58,601.15,0.28925156]
[1743351959872,6.931,601.58,601.14,0.3327012]
[1743351960275,6.931,601.58,601.15,0.28925877]
[1743351962873,6.931,601.58,601.14,0.3327012]
[1743351963278,6.931,601.58,601.15,0.28926599]
[1743351965982,6.931,601.58,601.14,0.3327012]
[1743351966276,6.931,601.58,601.15,0.28926599]
[1743351968879,6.931,601.58,601.14,0.3327012]
[1743351969380,6.931,601.58,601.15,0.28927681]
[1743351972080,6.931,601.58,601.14,0.3327012]
[1743351972279,6.931,601.58,601.15,0.28925397]
[1743351974980,6.931,601.58,601.14,0.3327012]
[1743351975178,6.931,601.58,601.15,0.28925156]
[1743351977989,6.931,601.58,601.14,0.3327012]
[1743351978182,6.931,601.58,601.15,0.28925156]
[1743351980388,6.931,601.58,601.15,2.81976526]
[1743351980883,6.931,601.58,601.15,2.5305137]
[1743351981285,6.931,601.58,601.15,2.81975204]
[1743351982384,6.931,601.58,601.18,2.5305137]
[1743351983589,6.931,601.58,601.15,0.28923834]
[1743351983590,6.931,601.58,601.21,2.5305137]
[1743351984584,6.931,601.58,601.17,0.28922151]
[1743351984785,6.931,601.58,601.18,0.33267906]
[1743351993991,6.931,601.58,601.27,2.5305137]
[1743351994699,1.689,601.58,601.27,2.5305137]
[1743351995398,1.689,601.58,601.18,0.33267906]
[1743351995399,1.689,601.58,601.34,2.5305137]
[1743351995899,6.83069488,602.49,601.34,2.5305137]
[1743351996095,6.83069488,602.48,601.34,2.5305137]
[1743351996400,7.16266161,602.47,601.34,2.5305137]
[1743351996599,6.16640474,602.46,601.34,2.5305137]
[1743351996801,6.16640474,602.45,601.24,0.28919147]
[1743351996997,4.70045984,602.44,601.24,0.62183733]
[1743351997301,4.70045984,602.43,601.24,0.62183733]
[1743351997495,2.37169413,602.42,601.24,0.62183733]
[1743351997696,1.45547857,602.41,601.24,0.62183733]
[1743351997899,1.45547857,602.4,601.24,0.62183733]
[1743351998099,1.45547857,602.39,601.24,0.62183733]
[1743351998303,1.45547857,602.38,601.24,0.62183733]
[1743351998601,1.45547857,602.37,601.24,0.62183733]
[1743351998802,1.45547857,602.36,601.24,0.62183733]
[1743351998998,1.45519762,602.35,601.24,0.62183733]
[1743351999399,2.98499214,602.36,601.25,0.33264033]
[1743351999905,1.409,602.35,601.25,0.33264033]
[1743352000705,1.409,602.35,601.51,2.5305137]
[1743352000899,1.409,602.35,601.52,0.33249102]
[1743352014014,1.66,602.34,601.52,0.33249102]
[1743352024022,1.803,602.33,601.52,0.33249102]
[1743352038443,3.184,602.33,601.52,0.33249102]
[1743352046251,4.912,602.33,601.52,0.33249102]
[1743352051348,4.912,602.33,601.54,2.5305137]
[1743352051551,4.912,602.33,601.55,0.33247444]
[1743352052451,4.912,602.33,601.55,2.86298814]
[1743352053853,4.912,602.33,601.58,2.5305137]
[1743352055251,4.912,602.33,601.59,0.33245233]
[1743352058153,6.123,602.33,601.59,0.33245233]
[1743352059458,6.123,602.33,601.68,2.5305137]
[1743352059755,6.123,602.33,601.69,0.33239708]
[1743352061659,6.123,602.33,601.69,2.86291078]
[1743352063662,6.123,602.33,601.75,2.5305137]
[1743352063856,6.123,602.33,601.76,0.33235841]
[1743352065762,6.123,602.33,601.92,2.5305137]
[1743352065959,6.123,602.33,601.93,0.33226454]
[1743352066564,6.123,602.33,602.0,2.5305137]
[1743352066959,2.939,602.33,602.0,2.5305137]
[1743352067765,2.939,602.33,602.01,2.5305137]
[1743352069268,2.939,602.33,602.02,0.33221487]
[1743352080470,2.939,602.33,602.1,2.5305137]
[1743352080671,2.939,602.33,602.11,0.33216521]
[1743352082072,1.211,602.33,602.11,0.33216521]
[1743352084472,1.211,602.33,602.15,2.5305137]
[1743352085772,1.211,602.33,602.18,2.5305137]
[1743352086679,0.56612234,602.33,602.18,2.5305137]
[1743352086875,1.121,602.39,602.18,2.5305137]
[1743352087676,1.121,602.39,602.16,2.5305137]
[1743352089477,1.121,602.39,602.26,2.5305137]
[1743352090875,1.121,602.39,602.12,0.28881346]
[1743352092074,1.121,602.39,602.11,0.33216521]
[1743352092772,1.121,602.39,602.12,0.28894175]
[1743352095079,1.121,602.39,602.11,0.33216521]
[1743352095271,1.121,602.39,602.12,0.28882904]
[1743352098082,1.121,602.39,602.11,0.33216521]
[1743352098480,1.121,602.39,602.12,0.28882904]
[1743352100977,1.121,602.39,602.11,0.33216521]
[1743352101378,1.121,602.39,602.12,0.28882904]
[1743352104084,1.121,602.39,602.11,0.33216521]
[1743352104290,1.121,602.39,602.12,0.28882904]
[1743352106992,1.121,602.39,602.11,0.33216521]
[1743352107386,1.121,602.39,602.12,0.28882904]
[1743352109993,1.121,602.39,602.11,0.33216521]
[1743352110390,1.121,602.39,602.12,0.28882904]
[1743352113093,1.121,602.39,602.11,0.33216521]
[1743352113292,1.121,602.39,602.12,0.28882904]
[1743352115989,1.121,602.39,602.11,0.33216521]
[1743352116390,1.121,602.39,602.12,0.28885781]
[1743352117595,3.514,602.4,602.12,0.28885781]
[1743352118989,3.514,602.4,602.11,0.33216521]
[1743352119393,1.782,602.4,602.12,0.28885661]
[1743352120996,3.306,602.4,602.12,0.28885661]
[1743352122093,3.306,602.4,601.08,2.5305137]
[1743352122297,3.306,602.4,602.12,0.28899214]
[1743352122698,4.554,602.4,601.48,2.5305137]
[1743352122999,4.554,602.4,601.5,0.33250207]
[1743352123695,2.772,602.4,601.5,0.33250207]
[1743352124703,2.772,602.4,601.51,0.28894415]
[1743352124903,2.772,602.4,601.53,0.33248549]
[1743352126195,1.323,602.39,601.53,0.33248549]
[1743352131615,1.323,602.39,601.68,2.5305137]
[1743352131812,1.323,602.39,601.69,0.33239708]
[1743352136218,1.323,602.39,601.7,2.5305137]
[1743352136517,1.323,602.39,601.71,0.33238603]
[1743352138221,1.323,602.39,601.73,2.5305137]
[1743352138414,1.323,602.39,601.74,0.33236946]
[1743352141423,1.323,602.39,601.74,2.86288316]
[1743352143623,1.323,602.39,601.83,2.5305137]
[1743352144817,1.323,602.39,601.74,0.33236946]
[1743352146422,1.262,602.38,601.74,0.33236946]
[1743352148824,1.262,602.38,601.77,2.5305137]
[1743352149023,1.262,602.38,601.78,0.33234736]
[1743352150223,1.262,602.38,601.82,2.5305137]
[1743352151623,1.262,602.38,601.78,0.33234736]
[1743352152928,1.269,602.37,601.78,0.33234736]
[1743352157833,1.703,602.36,601.78,0.33234736]
[1743352160135,1.198,602.35,601.78,0.33234736]
[1743352162135,1.556,602.34,601.78,0.33234736]
[1743352182353,1.198,602.35,601.78,0.33234736]
[1743352185048,1.295,602.34,601.78,0.33234736]
[1743352189653,1.577,602.33,601.78,0.33234736]
[1743352207373,3.249,602.33,601.78,0.33234736]
[1743352207580,3.249,602.33,601.78,2.86286106]
[1743352209474,3.249,602.33,601.8,2.5305137]
[1743352210484,3.249,602.33,601.78,0.33234736]
[1743352213782,4.749,602.33,601.78,0.33234736]
[1743352214386,6.243,602.33,601.78,0.33234736]
[1743352220597,6.243,602.33,601.91,2.5305137]
[1743352221000,6.243,602.33,601.92,0.33227006]
[1743352225496,4.666,602.33,601.92,0.33227006]
[1743352225701,2.97633034,602.33,601.92,0.33227006]
[1743352225902,1.494,602.33,601.92,0.33227006]
[1743352226101,1.494,602.33,601.92,2.86278376]
[1743352226403,1.494,602.33,602.06,2.5305137]
[1743352226614,0.28887939,603.28,602.06,2.5305137]
[1743352226801,0.33152651,603.27,602.06,2.5305137]
[1743352227899,0.33152651,603.27,601.99,2.5305137]
[1743352228700,1.428,603.26,601.99,2.5305137]
[1743352228901,0.3315375,603.25,601.99,2.5305137]
[1743352229698,1.471,603.24,601.99,2.5305137]
[1743352229903,0.33154849,603.23,601.95,0.28873797]
[1743352230098,0.33154849,603.23,601.92,0.33227006]
[1743352230499,1.423,603.22,601.95,0.28875954]
[1743352230702,0.33155949,603.21,601.95,0.28875954]
[1743352231201,0.33155949,603.21,601.96,0.33224798]
[1743352233502,1.21005112,603.2,601.96,0.33224798]
[1743352233703,0.33157048,603.19,601.96,0.33224798]
[1743352242008,1.21005112,603.18,601.96,0.33224798]
[1743352242410,1.21005112,603.17,601.96,0.33224798]
[1743352243110,1.21005112,603.16,601.96,0.33224798]
[1743352243708,1.21005112,603.15,601.96,0.33224798]
[1743352244711,1.21005112,603.14,601.96,0.33224798]
[1743352245308,1.21005112,603.18,601.96,0.33224798]
[1743352245807,1.21005112,603.17,601.96,0.33224798]
[1743352249108,1.21005112,603.16,601.96,0.33224798]
[1743352249612,1.21005112,603.15,601.96,0.33224798]
[1743352249814,1.21005112,603.14,601.96,0.33224798]
[1743352250912,2.89805112,603.13,601.96,0.33224798]
[1743352251716,1.688,603.13,601.96,0.33224798]
[1743352255211,1.623,603.12,601.96,0.33224798]
[1743352255616,1.21005112,603.11,601.96,0.33224798]
[1743352255817,2.38905112,603.11,601.96,0.33224798]
[1743352256008,3.89297937,603.11,601.96,0.33224798]
[1743352256210,2.38905112,603.11,601.96,0.33224798]
[1743352256420,0.33161996,603.1,601.96,0.33224798]
[1743352263628,4.25018376,603.1,601.96,0.33224798]
[1743352263831,5.14651525,603.09,601.96,0.33224798]
[1743352264025,3.9185638,603.08,601.96,0.33224798]
[1743352264227,7.113342,603.07,601.96,0.33224798]
[1743352264428,1.83878187,603.06,601.96,0.33224798]
[1743352264628,2.74382442,603.06,601.96,0.33224798]
[1743352264828,1.5595989,603.05,601.96,0.33224798]
[1743352265030,0.33165295,603.04,601.96,0.33224798]
[1743352265434,1.348,603.03,601.96,0.33224798]
[1743352265628,0.33166395,603.02,601.96,0.33224798]
[1743352266028,1.83880387,603.02,601.96,0.33224798]
[1743352266230,1.50713992,603.01,601.96,0.33224798]
[1743352266431,1.83881487,603.0,601.96,0.33224798]
[1743352266635,1.83882037,602.99,601.96,0.33224798]
[1743352266930,0.33168595,602.98,601.96,0.33224798]
[1743352267325,5.47855679,602.98,601.96,0.33224798]
[1743352267529,3.91891939,602.97,601.96,0.33224798]
[1743352267724,4.24942821,602.96,601.96,0.33224798]
[1743352267929,1.83884238,602.95,601.96,0.33224798]
[1743352268133,0.33170246,602.95,601.96,0.33224798]
[1743352268328,1.22795145,602.94,601.96,0.33224798]
[1743352269231,1.22795145,602.93,601.96,0.33224798]
[1743352269628,1.22795145,602.92,601.96,0.33224798]
[1743352270133,1.22795145,602.91,601.96,0.33224798]
[1743352271129,1.22795145,602.9,601.96,0.33224798]
[1743352271627,0.33170246,602.95,601.96,0.33224798]
[1743352273534,2.05270246,602.95,601.96,0.33224798]
[1743352278536,4.69839907,602.94,601.96,0.33224798]
[1743352278740,2.74923995,602.93,601.96,0.33224798]
[1743352278936,1.83733976,602.92,601.96,0.33224798]
[1743352279135,1.5056208,602.91,601.96,0.33224798]
[1743352279343,1.83735077,602.9,601.96,0.33224798]
[1743352279543,1.83735627,602.89,601.96,0.33224798]
[1743352279743,1.5056208,602.88,601.96,0.33224798]
[1743352279940,1.5056208,602.87,601.96,0.33224798]
[1743352280142,1.22799164,602.87,601.96,0.33224798]
[1743352280438,2.73361244,602.87,601.96,0.33224798]
[1743352280645,1.5056208,602.86,601.95,0.28890697]
[1743352280942,1.5056208,602.85,601.95,0.28890697]
[1743352281143,1.5056208,602.86,601.3,2.5305137]
[1743352281344,1.55974912,602.85,601.32,0.3326016]
[1743352281545,1.83738378,602.84,601.95,0.28896934]
[1743352281844,1.5056208,602.83,601.32,0.3326016]
[1743352282039,1.5056208,602.82,601.32,0.3326016]
[1743352282239,1.5056208,602.81,601.32,0.3326016]
[1743352282441,1.5056208,602.8,601.32,0.3326016]
[1743352282744,1.8374113,602.79,601.32,0.3326016]
[1743352282940,1.83741681,602.78,601.32,0.3326016]
[1743352283141,1.83498529,602.77,601.32,0.3326016]
[1743352283437,1.8349908,602.76,601.32,0.3326016]
[1743352283639,1.8349963,602.75,601.32,0.3326016]
[1743352283844,1.83500181,602.74,601.32,0.3326016]
[1743352284044,0.33182353,602.73,601.32,0.3326016]
[1743352284345,1.50318378,602.72,601.33,0.28901614]
[1743352284638,1.55982618,602.71,601.34,0.33259054]
[1743352285246,2.73008575,602.7,601.34,0.33259054]
[1743352285744,1.22799164,602.69,601.34,0.33259054]
[1743352286339,1.22799164,602.68,601.34,0.33259054]
[1743352287346,1.22799164,602.67,601.34,0.33259054]
[1743352288045,1.22799164,602.66,601.34,0.33259054]
[1743352288346,1.50209411,602.65,601.34,0.33259054]
[1743352288549,1.50209411,602.64,601.34,0.33259054]
[1743352288749,1.22799164,602.66,601.34,0.33259054]
[1743352288750,1.50209411,602.63,601.34,0.33259054]
[1743352288950,1.50209411,602.62,601.34,0.33259054]
[1743352289250,1.50209411,602.61,601.34,0.33259054]
[1743352289447,1.50209411,602.6,601.34,0.33259054]
[1743352289644,1.50209411,602.59,601.34,0.33259054]
[1743352289849,1.50209411,602.58,601.34,0.33259054]
[1743352290046,1.22799164,602.6,601.34,0.33259054]
[1743352290246,1.66,602.58,601.34,0.33259054]
[1743352290952,1.22799164,602.57,601.34,0.33259054]
[1743352291354,1.22799164,602.56,601.34,0.33259054]
[1743352291952,1.22799164,602.55,601.34,0.33259054]
[1743352292755,2.72649121,602.54,601.34,0.33259054]
[1743352293056,1.22799164,602.54,601.34,0.33259054]
[1743352293350,1.22799164,602.53,601.34,0.33259054]
[1743352293957,1.66,602.58,601.34,0.33259054]
[1743352294354,2.919,602.58,601.34,0.33259054]
[1743352294658,4.628,602.58,601.34,0.33259054]
[1743352296856,4.628,602.58,601.34,2.86310424]
[1743352298066,5.821,602.58,601.34,2.86310424]
[1743352298660,5.821,602.58,601.47,2.5305137]
[1743352298868,5.821,602.58,601.48,0.33251313]
[1743352299868,5.821,602.58,601.56,2.5305137]
[1743352301070,5.821,602.58,601.48,0.33251313]
[1743352302165,1.22224767,602.57,601.48,0.33251313]
[1743352303072,5.821,602.58,601.48,0.33251313]
[1743352303966,1.49865444,602.57,601.48,0.33251313]
[1743352304372,1.49865444,602.56,601.48,0.33251313]
[1743352304569,1.49865444,602.55,601.48,0.33251313]
[1743352304768,1.49865444,602.54,601.39,0.28902094]
[1743352304973,1.49865444,602.53,601.39,0.28902094]
[1743352305273,1.49865444,602.52,601.27,2.5305137]
[1743352305574,1.49865444,602.51,601.39,0.28909417]
[1743352305774,1.83060464,602.5,601.27,2.5305137]
[1743352305968,1.83061015,602.49,601.27,2.86314296]
[1743352306174,0.33195571,602.49,601.27,2.86314296]
[1743352306374,1.49750527,602.48,601.27,2.86314296]
[1743352306572,2.71946375,602.48,601.27,2.86314296]
[1743352306777,0.33196673,602.47,601.27,0.33262926]
[1743352306977,1.829472,602.47,601.27,0.33262926]
[1743352307178,1.49750527,602.46,601.27,0.33262926]
[1743352307377,1.49750527,602.45,601.27,0.33262926]
[1743352307679,1.82948853,602.44,601.27,0.33262926]
[1743352307876,1.49750527,602.43,601.27,0.33262926]
[1743352308078,1.82949955,602.42,601.27,0.33262926]
[1743352308279,0.3319998,602.41,601.27,0.33262926]
[1743352308573,0.3319998,602.41,601.28,0.28918546]
[1743352311080,0.3319998,602.41,601.27,0.33262926]
[1743352311380,0.3319998,602.41,601.28,0.28909417]
[1743352312983,1.066,602.4,601.28,0.28909417]
[1743352313182,2.28795848,602.4,601.28,0.28909417]
[1743352313481,1.22195848,602.39,601.28,0.28909417]
[1743352314182,1.22195848,602.38,601.27,0.33262926]
[1743352314682,1.22195848,602.38,601.28,0.28912179]
[1743352315282,1.22195848,602.37,601.28,0.28912179]
[1743352315881,1.066,602.4,601.28,0.28912179]
[1743352315882,1.22195848,602.36,601.28,0.28912179]
[1743352316979,1.22195848,602.35,601.28,0.28912179]
[1743352317185,1.22195848,602.35,601.27,0.33262926]
[1743352317378,1.22195848,602.35,601.28,0.2891302]
[1743352317780,1.22195848,602.34,601.28,0.2891302]
[1743352318889,1.22195848,602.33,601.28,0.2891302]
[1743352320190,1.22195848,602.32,601.27,0.33262926]
[1743352320491,1.22195848,602.32,601.28,0.2891338]
[1743352321290,1.22195848,602.31,601.28,0.2891338]
[1743352322089,1.22195848,602.39,601.28,0.2891338]
[1743352322288,0.33201633,602.38,601.28,0.2891338]
[1743352322492,1.55397481,602.38,601.28,0.2891338]
[1743352322993,1.625,602.37,601.28,0.2891338]
[1743352323192,1.625,602.37,601.27,0.33262926]
[1743352323393,1.49833649,602.36,601.28,0.2891278]
[1743352323693,1.49833649,602.35,601.28,0.2891278]
[1743352323893,1.49833649,602.34,601.28,0.2891278]
[1743352324194,1.49833649,602.33,601.28,0.2891278]
[1743352324393,1.49833649,602.32,601.28,0.2891278]
[1743352324589,1.49833649,602.31,601.28,0.2891278]
[1743352324786,1.49833649,602.3,601.28,0.2891278]
[1743352324991,1.49833649,602.29,601.28,0.2891278]
[1743352325188,1.49833649,602.3,601.28,0.2891278]
[1743352325593,1.22195848,602.29,601.28,0.2891278]
[1743352326096,1.22195848,602.29,601.27,0.33262926]
[1743352326394,1.22195848,602.29,601.28,0.28913861]
[1743352326589,1.22195848,602.28,601.28,0.28913861]
[1743352327495,1.22195848,602.27,601.28,0.28913861]
[1743352328393,1.22195848,602.26,601.28,0.28913861]
[1743352328795,1.49875752,602.25,601.28,0.28913861]
[1743352329093,3.89616954,602.24,601.28,0.28913861]
[1743352329298,4.803927,602.23,601.28,0.28913861]
[1743352329491,5.46782557,602.22,601.28,0.28913861]
[1743352329694,5.46782557,602.21,601.28,0.28913861]
[1743352329891,4.80322943,602.2,601.28,0.28913861]
[1743352330093,5.13535052,602.19,601.28,0.28913861]
[1743352330293,3.89616954,602.18,601.28,0.28913861]
[1743352330496,3.89616954,602.17,601.28,0.28913861]
[1743352330698,3.89616954,602.16,601.28,0.28913861]
[1743352330890,1.49875752,602.15,601.28,0.28913861]
[1743352331096,1.49875752,602.14,601.28,0.28913861]
[1743352331295,1.49875752,602.13,601.28,0.28913861]
[1743352331496,1.49875752,602.17,601.28,0.28913861]
[1743352331699,1.22195848,602.13,601.28,0.28913861]
[1743352332193,1.22195848,602.13,599.9,2.5305137]
[1743352332395,1.22195848,602.12,600.01,0.33332777]
[1743352332594,1.49875752,602.11,601.28,0.2893646]
[1743352332794,1.49875752,602.1,600.01,0.33332777]
[1743352333000,1.49559414,602.09,600.01,0.33332777]
[1743352333198,1.49559414,602.08,600.01,0.33332777]
[1743352333394,1.49559414,602.07,600.01,0.33332777]
[1743352333699,1.49559414,602.06,600.01,0.33332777]
[1743352333902,1.49559414,602.05,600.01,0.33332777]
[1743352334196,3.88854477,602.05,600.12,2.5305137]
[1743352334501,1.49559414,602.04,600.12,2.5305137]
[1743352334800,3.17709205,602.04,600.12,2.5305137]
[1743352335197,1.22195848,602.03,600.12,2.5305137]
[1743352335501,1.22195848,602.03,600.13,0.2893646]
[1743352335698,1.22195848,602.02,600.48,2.5305137]
[1743352336093,1.22195848,602.02,600.5,0.33305578]
[1743352336496,1.22195848,602.01,600.5,0.33305578]
[1743352336699,2.64695848,602.01,600.5,0.33305578]
[1743352337296,1.425,602.01,600.5,0.33305578]
[1743352339101,1.49516182,602.0,600.51,2.5305137]
[1743352339304,1.49516182,601.99,600.51,2.5305137]
[1743352339504,2.7171203,601.99,600.53,0.33303914]
[1743352339700,1.22195848,601.99,600.53,0.33303914]
[1743352339900,1.49516182,601.98,600.53,0.33303914]
[1743352340097,1.49516182,601.97,600.53,0.33303914]
[1743352340299,1.49516182,601.98,600.53,0.33303914]
[1743352340498,1.22195848,601.97,600.53,0.33303914]
[1743352341105,1.22195848,601.96,600.53,0.33303914]
[1743352341708,1.22195848,601.95,600.53,0.33303914]
[1743352342506,1.69,602.0,600.53,0.33303914]
[1743352343103,1.21945775,601.99,600.53,0.33303914]
[1743352343805,1.21945775,601.98,600.53,0.33303914]
[1743352344406,2.59645775,601.97,600.53,0.33303914]
[1743352345306,1.377,601.97,600.53,0.33303914]
[1743352347912,1.377,601.97,600.68,2.5305137]
[1743352348105,1.377,601.97,600.7,0.33294489]
[1743352349710,1.377,601.97,600.77,2.5305137]
[1743352349910,1.377,601.97,600.79,0.33289502]
[1743352350210,1.343,601.96,600.79,0.33289502]
[1743352351012,1.343,601.96,600.79,2.86340872]
[1743352353315,1.343,601.96,600.79,0.33289502]
[1743352361824,1.343,601.96,600.97,2.5305137]
[1743352362223,1.377,601.97,600.97,2.5305137]
[1743352362522,1.377,601.97,600.98,0.33278977]
[1743352363119,1.377,601.97,601.16,2.5305137]
[1743352364626,1.754,601.96,601.09,2.5305137]
[1743352366523,1.754,601.96,600.98,0.33278977]
[1743352369333,1.754,601.96,600.99,2.5305137]
[1743352371036,1.754,601.96,600.98,0.33278977]
[1743352373136,1.37,601.95,600.98,0.33278977]
[1743352387848,1.37,601.95,601.15,2.5305137]
[1743352389054,3.109,601.95,600.98,0.33278977]
[1743352396748,4.522,601.95,600.98,0.33278977]
[1743352402152,6.162,601.95,600.98,0.33278977]
[1743352405059,6.162,601.95,601.16,2.5305137]
[1743352406159,6.162,601.95,601.17,0.33268459]
[1743352416167,6.162,601.95,600.43,2.5305137]
[1743352416663,6.162,601.95,601.15,0.28929244]
[1743352416867,1.22498486,601.94,600.45,0.33308352]
[1743352417760,4.792,601.95,600.45,0.33308352]
[1743352420764,6.098,601.95,600.45,0.33308352]
[1743352432275,1.2224731,601.94,600.45,0.33308352]
[1743352435275,2.9214731,601.94,600.45,0.33308352]
[1743352436677,1.699,601.94,600.45,0.33308352]
[1743352440383,1.699,601.94,600.45,2.86359722]
[1743352441780,1.699,601.94,600.48,2.5305137]
[1743352442286,1.699,601.94,600.5,0.33305578]
[1743352443384,1.699,601.94,600.56,2.5305137]
[1743352443585,1.699,601.94,600.58,0.33301142]
[1743352445788,2.756,601.94,600.58,0.33301142]
[1743352446589,2.756,601.94,600.82,2.5305137]
[1743352446984,2.756,601.94,600.83,0.33287285]
[1743352447488,3.837,601.94,600.83,0.33287285]
[1743352448089,3.837,601.94,600.86,2.5305137]
[1743352448292,3.837,601.94,600.87,0.33285069]
[1743352460300,3.837,601.94,600.95,2.5305137]
[1743352460498,3.837,601.94,600.97,0.33279531]
[1743352475926,3.837,601.94,600.98,2.5305137]
[1743352476123,3.837,601.94,600.99,0.33278423]
[1743352477128,3.837,601.94,601.02,2.5305137]
[1743352477426,3.837,601.94,601.03,0.33276209]
[1743352478933,3.837,601.94,601.05,2.5305137]
[1743352479124,3.837,601.94,601.05,2.86326471]
[1743352480630,3.837,601.94,601.08,2.5305137]
[1743352482531,3.837,601.94,601.16,2.5305137]
[1743352484136,3.837,601.94,601.14,2.5305137]
[1743352485337,3.837,601.94,601.22,2.5305137]
[1743352486935,3.837,601.94,601.16,2.5305137]
[1743352488934,3.837,601.94,601.11,0.28922993]
[1743352491238,3.837,601.94,601.05,0.33275101]
[1743352491839,3.837,601.94,601.06,0.28924555]
[1743352494340,3.837,601.94,601.05,0.33275101]
[1743352494534,3.837,601.94,601.06,0.28924074]
[1743352497339,3.837,601.94,601.05,0.33275101]
[1743352497740,3.837,601.94,601.06,0.28924074]
[1743352500248,3.837,601.94,601.05,0.33275101]
[1743352500649,3.837,601.94,601.06,0.28924074]
[1743352501648,5.363,601.94,601.06,0.28924074]
[1743352503246,5.363,601.94,601.05,0.33275101]
[1743352503546,5.363,601.94,601.06,0.28925036]
[1743352504352,1.22955343,601.93,601.06,0.28925036]
[1743352504851,1.526,601.94,601.06,0.28925036]
[1743352506049,1.22952992,601.93,601.06,0.28925036]
[1743352506354,1.22952992,601.93,601.05,0.33275101]
[1743352506653,1.22952992,601.93,601.06,0.28926118]
[1743352507054,1.413,601.92,601.06,0.28926118]
[1743352507648,1.409,601.91,601.06,0.28926118]
[1743352508354,1.717,601.9,601.06,0.28926118]
[1743352509348,1.717,601.9,601.05,0.33275101]
[1743352509554,1.717,601.9,601.06,0.28925998]
[1743352512153,1.717,601.9,601.05,0.33275101]
[1743352512750,1.717,601.9,601.06,0.28931288]
[1743352515253,1.717,601.9,600.62,2.5305137]
[1743352515560,1.717,601.9,601.06,0.28936099]
[1743352515761,1.717,601.9,600.63,0.3329837]
[1743352517560,2.92650756,601.9,600.63,0.3329837]
[1743352517759,4.42901329,601.9,600.64,0.2894019]
[1743352518157,3.90628226,601.89,600.64,0.2894019]
[1743352518359,3.90628226,601.88,600.63,0.3329837]
[1743352518555,3.90628226,601.87,600.64,0.28939709]
[1743352518756,5.14853316,601.86,600.64,0.28939709]
[1743352518958,5.14853868,601.85,600.64,0.28939709]
[1743352519163,1.83481996,601.84,600.64,0.28939709]
[1743352519461,1.83482548,601.83,600.64,0.28939709]
[1743352519659,1.50250573,601.82,600.64,0.28939709]
[1743352520356,1.83482548,601.83,600.64,0.28939709]
[1743352520560,1.20950756,601.81,600.64,0.28939709]
[1743352521466,1.20950756,601.8,600.63,0.3329837]
[1743352521763,1.20950756,601.8,600.64,0.28940792]
[1743352522062,1.20950756,601.79,600.64,0.28940792]
[1743352522664,1.20950756,601.78,600.64,0.28940792]
[1743352523459,1.20950756,601.77,600.64,0.28940792]
[1743352524261,1.20950756,601.82,600.63,0.3329837]
[1743352524461,2.70988069,601.82,600.64,0.28941995]
[1743352524663,1.20950756,601.82,600.64,0.28941995]
[1743352524860,2.70988069,601.81,600.64,0.28941995]
[1743352525067,1.50037313,601.8,600.64,0.28941995]
[1743352525266,1.50037313,601.79,600.64,0.28941995]
[1743352525466,3.89930915,601.8,600.64,0.28941995]
[1743352525673,3.89930915,601.79,600.64,0.28941995]
[1743352525969,3.89930915,601.78,600.64,0.28941995]
[1743352526163,3.14329524,601.79,600.64,0.28941995]
[1743352526767,0.33234736,601.78,600.64,0.28941995]